fUSD/lending_fUSD_20260405
["ID","MTS","AMOUNT","RATE_DAILY","PERIOD"]
[419771819,1775369448664,-1363.0,0.00014599,2]
[419771820,1775369448673,-1363.0,0.00014599,2]
[419771821,1775369448682,-1363.0,0.00014599,2]
[419771822,1775369448692,-1363.0,0.00014599,2]
[419771823,1775369448701,-1363.0,0.00014599,2]
[419771824,1775369448710,-1365.0,0.00014599,2]
[419771825,1775369448719,-160.9517,0.000146,2]
[419771826,1775369448728,-150.0,0.000146,2]
[419771827,1775369448737,-150.0,0.000146,2]
[419771828,1775369448746,-155.75015911,0.0001461,2]
[419771829,1775369448756,-150.0,0.00014616,2]
[419771830,1775369448765,-150.0,0.00014622,2]
[419771831,1775369448775,-150.0,0.00014622,2]
[419771832,1775369448784,-150.0,0.00014625,2]
[419771833,1775369448794,-150.0,0.00014625,2]
[419771834,1775369448804,-155.75015911,0.00014626,2]
[419771835,1775369448813,-150.0,0.00014634,2]
[419771836,1775369448822,-150.0,0.00014635,2]
[419771837,1775369448832,-150.0,0.0001464,2]
[419771838,1775369448841,-155.75015911,0.00014642,2]
[419771839,1775369448851,-150.0,0.00014644,2]
[419771840,1775369448861,-150.0,0.00014646,2]
[419771841,1775369448870,-150.0,0.00014646,2]
[419771842,1775369448880,-150.0,0.0001465,2]
[419771843,1775369448889,-150.0,0.00014652,2]
[419771844,1775369448900,-150.0,0.00014653,2]
[419771845,1775369448909,-155.75015911,0.00014659,2]
[419771846,1775369448919,-160.0,0.0001466,2]
[419771847,1775369448929,-150.0,0.00014667,2]
[419771848,1775369448938,-150.0,0.00014667,2]
[419771849,1775369448948,-150.0,0.0001467,2]
[419771850,1775369448958,-150.0,0.00014671,2]
[419771851,1775369448967,-155.75015911,0.00014675,2]
[419771852,1775369448977,-150.0,0.00014675,2]
[419771853,1775369448987,-150.0,0.00014681,2]
[419771854,1775369448996,-150.0,0.00014682,2]
[419771855,1775369449006,-268.8781609,0.00014683,2]
[419771856,1775369449016,-150.0,0.00014688,2]
[419771857,1775369449026,-150.0,0.00014689,2]
[419771858,1775369449035,-155.75015911,0.00014691,2]
[419771859,1775369449045,-1000.0,0.00014693,2]
[419771860,1775369449054,-150.0,0.00014695,2]
[419771861,1775369449064,-494.23746171,0.000147,2]
[419771862,1775369449074,-160.9517,0.000147,2]
[419771863,1775369449083,-150.0,0.000147,2]
[419771864,1775369449093,-150.0,0.00014706,2]
[419771865,1775369449102,-155.75015911,0.00014707,2]
[419771866,1775369449111,-150.0,0.00014708,2]
[419771867,1775369449121,-150.0,0.00014709,2]
[419771868,1775369449130,-150.0,0.00014711,2]
[419771869,1775369449139,-915.04157441,0.00014712,2]
[419771870,1775369449148,-150.0,0.0001472,2]
[419771871,1775369449157,-150.0,0.0001472,2]
[419771872,1775369449167,-155.75015911,0.00014723,2]
[419771873,1775369449176,-150.0,0.00014724,2]
[419771874,1775369449186,-150.0,0.00014725,2]
[419771875,1775369449195,-150.0,0.00014725,2]
[419771876,1775369449204,-150.0,0.00014729,2]
[419771877,1775369449214,-235.98,0.0001473,2]
[419771878,1775369449223,-150.0,0.00014733,2]
[419771879,1775369449232,-150.0,0.00014737,2]
[419771880,1775369449241,-155.75015911,0.00014739,2]
[419771881,1775369449251,-150.0,0.00014742,2]
[419771882,1775369449260,-22280.25424296,0.00014744,2]
[419771883,1775369449269,-150.0,0.00014745,2]
[419771884,1775369449279,-235.98,0.00014749,2]
[419771885,1775369449288,-150.0,0.0001475,2]
[419771886,1775369449298,-155.75015911,0.00014756,2]
[419771887,1775369449307,-150.0,0.00014756,2]
[419771888,1775369449317,-150.0,0.0001476,2]
[419771889,1775369449326,-150.0,0.00014765,2]
[419771890,1775369449335,-193.53651742,0.00014765,2]
[419771891,1775369449344,-235.98,0.00014767,2]
[419771892,1775369449353,-1500.0,0.00014768,2]
[419771893,1775369449363,-1500.0,0.00014768,2]
[419771894,1775369449372,-1068.30323739,0.00014768,2]
[419771895,1775369449382,-150.0,0.00014769,2]
[419771896,1775369449391,-150.0,0.00014769,2]
[419771897,1775369449401,-155.75015911,0.00014772,2]
[419771898,1775369449410,-150.0,0.00014775,2]
[419771899,1775369449419,-150.0,0.00014776,2]
[419771900,1775369449428,-150.0,0.00014778,2]
[419771901,1775369449438,-150.0,0.00014778,2]
[419771902,1775369449447,-155.75015911,0.00014788,2]
[419771903,1775369449457,-500.0,0.00014791,2]
[419771904,1775369449468,-500.0,0.00014791,2]
[419771905,1775369449477,-150.0,0.00014793,2]
[419771906,1775369449487,-150.0,0.00014794,2]
[419771907,1775369449498,-1500.0,0.00014795,2]
[419771908,1775369449513,-553.41835149,0.00014795,2]
[419771909,1775369449523,-150.0,0.00014796,2]
[419771910,1775369449532,-39114.2722937,0.00014797,2]
[419771911,1775369449542,-160.9517,0.000148,2]
[419771912,1775369449551,-150.0,0.000148,2]
[419771913,1775369449560,-150.0,0.000148,2]
[419771914,1775369449570,-150.0,0.000148,2]
[419771915,1775369449579,-155.75015911,0.00014804,2]
[419771916,1775369449588,-150.0,0.00014813,2]
[419771917,1775369449597,-150.0,0.00014818,2]
[419771918,1775369449606,-155.75015911,0.0001482,2]
[419771919,1775369449616,-150.0,0.00014821,2]
[419771920,1775369449625,-150.0,0.00014822,2]
[419771921,1775369449634,-150.0,0.00014824,2]
[419771922,1775369449643,-150.0,0.00014825,2]
[419771923,1775369449653,-150.0,0.00014831,2]
[419771924,1775369449662,-1000.0,0.00014831,2]
[419771925,1775369449672,-150.0,0.00014831,2]
[419771926,1775369449681,-155.75015911,0.00014836,2]
[419771927,1775369449691,-164.79711181,0.00014842,2]
[419771928,1775369449700,-500.0,0.00014842,2]
[419771929,1775369449709,-150.0,0.00014843,2]
[419771930,1775369449719,-150.0,0.00014844,2]
[419771931,1775369449729,-150.0,0.00014849,2]
[419771932,1775369449738,-150.0,0.00014849,2]
[419771933,1775369449747,-150.0,0.0001485,2]
[419771934,1775369449757,-155.75015911,0.00014853,2]
[419771935,1775369449766,-150.0,0.00014867,2]
[419771936,1775369449775,-150.0,0.00014867,2]
[419771937,1775369449784,-150.0,0.00014868,2]
[419771938,1775369449797,-155.75015911,0.00014869,2]
[419771939,1775369449806,-150.0,0.00014871,2]
[419771940,1775369449816,-290.32,0.00014872,2]
[419771941,1775369449825,-150.0,0.00014875,2]
[419771942,1775369449835,-150.0,0.00014877,2]
[419771943,1775369449845,-150.0,0.0001488,2]
[419771944,1775369449855,-155.75015911,0.00014885,2]
[419771945,1775369449864,-150.0,0.00014885,2]
[419771946,1775369449874,-1000.0,0.00014886,2]
[419771947,1775369449884,-403.93256284,0.00014887,2]
[419771948,1775369449895,-500.0,0.00014887,2]
[419771949,1775369449905,-150.0,0.00014889,2]
[419771950,1775369449914,-169.77216959,0.00014889,2]
[419771951,1775369449923,-933.30714322,0.0001489,2]
[419771952,1775369449933,-414.48120103,0.0001489,2]
[419771953,1775369449943,-845.48340565,0.0001489,2]
[419771954,1775369449952,-185.19797263,0.0001489,2]
[419771955,1775369449962,-155.21758097,0.0001489,2]
[419771956,1775369449971,-150.0,0.00014892,2]
[419771957,1775369449982,-150.0,0.00014892,2]
[419771958,1775369449992,-160.9517,0.000149,2]
[419771959,1775369450002,-150.0,0.000149,2]
[419771960,1775369450012,-155.75015911,0.00014901,2]
[419771961,1775369450022,-150.0,0.00014903,2]
[419771962,1775369450031,-3000.0,0.00014904,2]
[419771963,1775369450042,-150.0,0.00014905,2]
[419771964,1775369450053,-289.56339563,0.00014908,2]
[419771965,1775369450063,-150.0,0.00014911,2]
[419771966,1775369450072,-150.0,0.00014917,2]
[419771967,1775369450081,-155.75015911,0.00014917,2]
[419771968,1775369450091,-150.0,0.00014918,2]
[419771969,1775369450101,-861.43877969,0.00014921,2]
[419771970,1775369450111,-308.03873246,0.00014921,2]
[419771971,1775369450120,-1000.0,0.00014921,2]
[419771972,1775369450130,-1000.0,0.00014921,2]
[419771973,1775369450139,-1000.0,0.00014921,2]
[419771974,1775369450149,-1000.0,0.00014921,2]
[419771975,1775369450159,-500.99241895,0.00014921,2]
[419771976,1775369450169,-1000.0,0.00014921,2]
[419771977,1775369450179,-1000.0,0.00014921,2]
[419771978,1775369450189,-686.27125357,0.00014921,2]
[419771979,1775369450199,-1000.0,0.00014921,2]
[419771980,1775369450209,-150.0,0.00014921,2]
[419771981,1775369450219,-150.0,0.00014925,2]
[419771982,1775369450228,-155.75015911,0.00014933,2]
[419771983,1775369450238,-150.0,0.00014933,2]
[419771984,1775369450247,-150.0,0.00014933,2]
[419771985,1775369450257,-150.0,0.00014933,2]
[419771986,1775369450266,-150.0,0.00014933,2]
[419771987,1775369450277,-500.0,0.00014938,2]
[419771988,1775369450287,-500.0,0.00014938,2]
[419771989,1775369450297,-161.91170216,0.00014938,2]
[419771990,1775369450307,-500.0,0.00014938,2]
[419771991,1775369450317,-500.0,0.00014938,2]
[419771992,1775369450326,-500.0,0.00014938,2]
[419771993,1775369450336,-150.0,0.00014939,2]
[419771994,1775369450346,-150.0,0.00014942,2]
[419771995,1775369450355,-155.75015911,0.00014949,2]
[419771996,1775369450365,-189.54878928,0.0001495,2]
[419771997,1775369450374,-500.0,0.0001495,2]
[419771998,1775369450385,-500.0,0.0001495,2]
[419771999,1775369450396,-500.0,0.0001495,2]
[419772000,1775369450407,-500.0,0.0001495,2]
[419772001,1775369450417,-150.0,0.0001495,2]
[419772002,1775369450427,-150.0,0.00014954,2]
[419772003,1775369450436,-150.0,0.00014956,2]
[419772004,1775369450446,-150.0,0.00014957,2]
[419772005,1775369450455,-1000.0,0.00014959,2]
[419772006,1775369450465,-150.0,0.0001496,2]
[419772007,1775369450475,-150.0,0.00014961,2]
[419772008,1775369450484,-150.0,0.00014965,2]
[419772009,1775369450494,-155.75015911,0.00014966,2]
[419772010,1775369450505,-150.0,0.00014966,2]
[419772011,1775369450514,-150.0,0.00014975,2]
[419772012,1775369450524,-150.0,0.00014975,2]
[419772013,1775369450534,-150.0,0.00014978,2]
[419772014,1775369450544,-155.75015911,0.00014982,2]
[419772015,1775369450553,-150.0,0.00014989,2]
[419772016,1775369450563,-150.0,0.00014991,2]
[419772017,1775369450572,-22280.25424296,0.00014993,2]
[419772018,1775369450582,-150.0,0.00014993,2]
[419772019,1775369450591,-155.75015911,0.00014998,2]
[419772020,1775369450600,-150.0,0.00015,2]
[419772021,1775369450610,-150.0,0.00015,2]
[419772022,1775369450620,-300.0,0.00015,2]
[419772023,1775369450630,-2067.27601646,0.00015,2]
[419772024,1775369450639,-8047.93487487,0.00015,2]
[419772025,1775369450649,-223458.98806615,0.00015,7]
[419772026,1775369450659,-150.0,0.00015011,2]
[419772027,1775369450668,-150.0,0.00015012,2]
[419772028,1775369450677,-155.75015911,0.00015014,2]
[419772029,1775369450687,-150.0,0.00015015,2]
[419772030,1775369450696,-150.0,0.00015015,2]
[419772031,1775369450706,-150.0,0.00015018,2]
[419772032,1775369450715,-150.0,0.00015022,2]
[419772033,1775369450725,-150.0,0.00015025,2]
[419772034,1775369450735,-150.0,0.00015029,2]
[419772035,1775369450745,-155.75015911,0.0001503,2]
[419772036,1775369450754,-1600.0,0.00015036,2]
[419772037,1775369450764,-150.0,0.0001504,2]
[419772038,1775369450774,-150.0,0.0001504,2]
[419772039,1775369450784,-150.0,0.00015044,2]
[419772040,1775369450794,-150.0,0.00015046,2]
[419772041,1775369450803,-155.75015911,0.00015046,2]
[419772042,1775369450813,-150.0,0.00015047,2]
[419772043,1775369450823,-150.0,0.0001505,2]
[419772044,1775369450832,-150.0,0.00015059,2]
[419772045,1775369450842,-155.75015911,0.00015063,2]
[419772046,1775369450852,-150.0,0.00015065,2]
[419772047,1775369450862,-500.0,0.00015065,2]
[419772048,1775369450871,-500.0,0.00015065,2]
[419772049,1775369450881,-150.0,0.00015065,2]
[419772050,1775369450891,-150.0,0.00015067,2]
[419772051,1775369450901,-5957.33,0.00015068,2]
[419772052,1775369450911,-800.0,0.00015068,2]
[419772053,1775369450920,-150.0,0.00015074,2]
[419772054,1775369450930,-150.0,0.00015075,2]
[419772055,1775369450940,-150.0,0.00015077,2]
[419772056,1775369450950,-500.0,0.00015077,2]
[419772057,1775369450960,-500.0,0.00015077,2]
[419772058,1775369450970,-500.0,0.00015077,2]
[419772059,1775369450981,-500.0,0.00015077,2]
[419772060,1775369450991,-467.45469685,0.00015077,2]
[419772061,1775369451000,-155.75015911,0.00015079,2]
[419772062,1775369451011,-150.0,0.00015083,2]
[419772063,1775369451021,-150.0,0.00015089,2]
[419772064,1775369451032,-150.0,0.00015089,2]
[419772065,1775369451041,-155.75015911,0.00015095,2]
[419772066,1775369451051,-500.0,0.000151,2]
[419772067,1775369451061,-500.0,0.000151,2]
[419772068,1775369451071,-150.0,0.000151,2]
[419772069,1775369451082,-150.0,0.00015101,2]
[419772070,1775369451092,-150.0,0.00015102,2]
[419772071,1775369451102,-200.0,0.00015104,2]
[419772072,1775369451111,-1536.04360649,0.00015104,2]
[419772073,1775369451121,-200.0,0.00015104,2]
[419772074,1775369451131,-799.54513345,0.00015104,2]
[419772075,1775369451140,-187.78006525,0.00015104,2]
[419772076,1775369451151,-745.65223616,0.00015104,2]
[419772077,1775369451160,-349.4458247,0.00015104,2]
[419772078,1775369451171,-150.0,0.00015106,2]
[419772079,1775369451181,-155.75015911,0.00015111,2]
[419772080,1775369451191,-150.0,0.00015111,2]
[419772081,1775369451201,-39114.2722937,0.00015111,2]
[419772082,1775369451210,-150.0,0.00015114,2]
[419772083,1775369451220,-243.30922088,0.00015119,2]
[419772084,1775369451231,-150.0,0.00015119,2]
[419772085,1775369451241,-150.0,0.0001512,2]
[419772086,1775369451251,-150.0,0.00015125,2]
[419772087,1775369451261,-155.75015911,0.00015127,2]
[419772088,1775369451270,-150.0,0.0001513,2]
[419772089,1775369451280,-150.0,0.00015133,2]
[419772090,1775369451290,-150.0,0.00015137,2]
[419772091,1775369451301,-150.0,0.00015138,2]
[419772092,1775369451311,-150.0,0.00015138,2]
[419772093,1775369451321,-155.75015911,0.00015143,2]
[419772094,1775369451331,-8422.99193755,0.0001515,2]
[419772095,1775369451341,-871.95012592,0.0001515,2]
[419772096,1775369451351,-150.0,0.0001515,2]
[419772097,1775369451361,-150.0,0.00015153,2]
[419772098,1775369451370,-150.0,0.00015155,2]
[419772099,1775369451380,-150.0,0.00015156,2]
[419772100,1775369451390,-150.0,0.00015158,2]
[419772101,1775369451399,-155.75015911,0.0001516,2]
[419772102,1775369451409,-1494.0,0.00015161,2]
[419772103,1775369451419,-150.0,0.00015163,2]
[419772104,1775369451429,-150.0,0.00015167,2]
[419772105,1775369451438,-150.0,0.00015173,2]
[419772106,1775369451448,-150.0,0.00015175,2]
[419772107,1775369451458,-155.75015911,0.00015176,2]
[419772108,1775369451468,-150.0,0.00015178,2]
[419772109,1775369451480,-881.74,0.00015179,2]
[419772110,1775369451491,-1494.0,0.00015181,2]
[419772111,1775369451501,-3292.0,0.00015185,2]
[419772112,1775369451511,-150.0,0.00015186,2]
[419772113,1775369451520,-150.0,0.00015188,2]
[419772114,1775369451531,-150.0,0.00015191,2]
[419772115,1775369451540,-155.75015911,0.00015192,2]
[419772116,1775369451551,-500.0,0.000152,2]
[419772117,1775369451561,-500.0,0.000152,2]
[419772118,1775369451570,-5000.0,0.000152,2]
[419772119,1775369451580,-5000.0,0.000152,2]
[419772120,1775369451590,-5000.0,0.000152,2]
[419772121,1775369451601,-150.0,0.000152,2]
[419772122,1775369451611,-150.0,0.000152,2]
[419772123,1775369451622,-150.0,0.000152,2]
[419772124,1775369451632,-322.47111,0.000152,2]
[419772125,1775369451643,-150.0,0.000152,2]
[419772126,1775369451652,-150.0,0.000152,2]
[419772127,1775369451662,-150.0,0.000152,2]
[419772128,1775369451672,-1543.76647306,0.00015203,2]
[419772129,1775369451681,-824.30105702,0.00015203,2]
[419772130,1775369451692,-1993.92956298,0.00015203,2]
[419772131,1775369451702,-440.36373832,0.00015203,2]
[419772132,1775369451712,-10000.0,0.00015205,2]
[419772133,1775369451722,-429.6676209,0.00015207,2]
[419772134,1775369451731,-155.75015911,0.00015208,2]
[419772135,1775369451741,-150.0,0.00015209,2]
[419772136,1775369451750,-150.0,0.00015212,2]
[419772137,1775369451760,-755.17,0.00015213,2]
[419772138,1775369451770,-1166.27,0.00015213,2]
[419772139,1775369451781,-1124.72,0.00015213,2]
[419772140,1775369451791,-899.16,0.00015213,2]
[419772141,1775369451801,-500.0,0.00015213,2]
[419772142,1775369451811,-900.72,0.00015213,2]
[419772143,1775369451821,-150.0,0.00015214,2]
[419772144,1775369451831,-150.0,0.00015222,2]
[419772145,1775369451840,-155.75015911,0.00015224,2]
[419772146,1775369451850,-150.0,0.00015225,2]
[419772147,1775369451860,-150.0,0.00015227,2]
[419772148,1775369451869,-150.0,0.00015237,2]
[419772149,1775369451880,-155.75015911,0.0001524,2]
[419772150,1775369451890,-22280.25424296,0.00015242,2]
[419772151,1775369451900,-150.0,0.00015242,2]
[419772152,1775369451909,-150.0,0.00015244,2]
[419772153,1775369451919,-150.0,0.00015245,2]
[419772154,1775369451930,-150.0,0.00015247,2]
[419772155,1775369451940,-150.0,0.0001525,2]
[419772156,1775369451951,-155.75015911,0.00015257,2]
[419772157,1775369451961,-150.0,0.00015262,2]
[419772158,1775369451971,-150.0,0.00015262,2]
[419772159,1775369451981,-150.0,0.00015263,2]
[419772160,1775369451991,-150.0,0.00015267,2]
[419772161,1775369452000,-150.0,0.0001527,2]
[419772162,1775369452011,-155.75015911,0.00015273,2]
[419772163,1775369452020,-150.0,0.00015275,2]
[419772164,1775369452031,-1000.0,0.00015279,2]
[419772165,1775369452041,-150.0,0.0001528,2]
[419772166,1775369452052,-150.0,0.00015281,2]
[419772167,1775369452062,-150.0,0.00015286,2]
[419772168,1775369452071,-155.75015911,0.00015289,2]
[419772169,1775369452081,-150.0,0.00015289,2]
[419772170,1775369452091,-1000.0,0.00015291,2]
[419772171,1775369452101,-150.0,0.00015294,2]
[419772172,1775369452376,-150.0,0.00015298,2]
[419772173,1775369452421,-150.0,0.00015299,2]
[419772174,1775369452431,-150.0,0.000153,2]
[419772175,1775369452441,-1517.64,0.000153,2]
[419772176,1775369452450,-370.52,0.00015302,2]
[419772177,1775369452460,-155.75015911,0.00015305,2]
[419772178,1775369452469,-150.0,0.00015311,2]
[419772179,1775369452478,-150.0,0.00015311,2]
[419772180,1775369452488,-2000.0,0.00015316,2]
[419772181,1775369452497,-2000.0,0.00015316,2]
[419772182,1775369452507,-150.0,0.00015317,2]
[419772183,1775369452517,-1000.0,0.00015321,2]
[419772184,1775369452527,-155.75015911,0.00015321,2]
[419772185,1775369452536,-150.0,0.00015323,2]
[419772186,1775369452550,-1494.0,0.00015325,2]
[419772187,1775369452559,-150.0,0.00015325,2]
[419772188,1775369452569,-150.0,0.00015326,2]
[419772189,1775369452578,-150.0,0.00015333,2]
[419772190,1775369452587,-150.0,0.00015335,2]
[419772191,1775369452597,-150.0,0.00015335,2]
[419772192,1775369452607,-155.75015911,0.00015337,2]
[419772193,1775369452616,-500.0,0.00015339,2]
[419772194,1775369452626,-500.0,0.00015339,2]
[419772195,1775369452636,-150.0,0.00015341,2]
[419772196,1775369452646,-2000.0,0.00015342,2]
[419772197,1775369452655,-150.0,0.0001535,2]
[419772198,1775369452665,-150.0,0.00015353,2]
[419772199,1775369452674,-155.75015911,0.00015354,2]
[419772200,1775369452683,-150.0,0.00015354,2]
[419772201,1775369452693,-150.0,0.00015356,2]
[419772202,1775369452703,-474.25,0.00015356,2]
[419772203,1775369452712,-474.26,0.00015356,2]
[419772204,1775369452722,-1494.0,0.0001536,2]
[419772205,1775369452731,-150.0,0.0001536,2]
[419772206,1775369452741,-150.0,0.0001536,2]
[419772207,1775369452750,-989.7,0.00015365,2]
[419772208,1775369452759,-1183.01,0.00015365,2]
[419772209,1775369452768,-889.96,0.00015365,2]
[419772210,1775369452779,-155.75015911,0.0001537,2]
[419772211,1775369452788,-150.0,0.00015371,2]
[419772212,1775369452799,-150.0,0.00015375,2]
[419772213,1775369452810,-150.0,0.00015378,2]
[419772214,1775369452819,-150.0,0.00015382,2]
[419772215,1775369452828,-150.0,0.00015385,2]
[419772216,1775369452838,-150.0,0.00015385,2]
[419772217,1775369452848,-155.75015911,0.00015386,2]
[419772218,1775369452857,-150.0,0.00015388,2]
[419772219,1775369452867,-150.0,0.00015389,2]
[419772220,1775369452876,-1000.0,0.0001539,2]
[419772221,1775369452885,-1148.83,0.000154,2]
[419772222,1775369452895,-150.0,0.000154,2]
[419772223,1775369452904,-150.0,0.000154,2]
[419772224,1775369452914,-512.60947705,0.000154,2]
[419772225,1775369452923,-155.75015911,0.00015402,2]
[419772226,1775369452933,-290.32,0.00015405,2]
[419772227,1775369452943,-150.0,0.00015407,2]
[419772228,1775369452953,-150.0,0.00015409,2]
[419772229,1775369452963,-150.0,0.00015411,2]
[419772230,1775369452973,-155.75015911,0.00015418,2]
[419772231,1775369452982,-150.0,0.00015422,2]
[419772232,1775369452992,-150.0,0.00015425,2]
[419772233,1775369453001,-150.0,0.00015425,2]
[419772234,1775369453011,-39114.2722937,0.00015426,2]
[419772235,1775369453020,-672.962147,0.00015426,2]
[419772236,1775369453030,-672.962147,0.00015426,2]
[419772237,1775369453040,-672.962147,0.00015426,2]
[419772238,1775369453050,-672.962147,0.00015426,2]
[419772239,1775369453060,-150.0,0.00015434,2]
[419772240,1775369453069,-155.75015911,0.00015434,2]
[419772241,1775369453078,-1000.0,0.00015435,2]
[419772242,1775369453088,-150.0,0.00015435,2]
[419772243,1775369453097,-150.0,0.00015439,2]
[419772244,1775369453107,-150.0,0.0001544,2]
[419772245,1775369453117,-150.0,0.00015443,2]
[419772246,1775369453127,-150.0,0.00015444,2]
[419772247,1775369453136,-150.0,0.00015446,2]
[419772248,1775369453146,-150.0,0.0001545,2]
[419772249,1775369453155,-155.75015911,0.00015451,2]
[419772250,1775369453165,-881.74,0.00015453,2]
[419772251,1775369453175,-150.0,0.00015458,2]
[419772252,1775369453185,-313.70748945,0.00015458,2]
[419772253,1775369453194,-150.0,0.00015461,2]
[419772254,1775369453203,-155.75015911,0.00015467,2]
[419772255,1775369453213,-150.0,0.00015467,2]
[419772256,1775369453222,-150.0,0.00015467,2]
[419772257,1775369453232,-150.0,0.00015467,2]
[419772258,1775369453242,-150.0,0.00015467,2]
[419772259,1775369453251,-953.31303788,0.00015469,2]
[419772260,1775369453260,-1515.96545288,0.00015469,2]
[419772261,1775369453270,-1500.0,0.00015469,2]
[419772262,1775369453280,-1500.0,0.00015469,2]
[419772263,1775369453290,-1500.0,0.00015469,2]
[419772264,1775369453300,-1500.0,0.00015469,2]
[419772265,1775369453310,-1500.0,0.00015469,2]
[419772266,1775369453320,-15609.82,0.00015471,2]
[419772267,1775369453329,-150.0,0.00015475,2]
[419772268,1775369453339,-150.0,0.00015479,2]
[419772269,1775369453350,-1000.0,0.00015482,2]
[419772270,1775369453359,-150.0,0.00015482,2]
[419772271,1775369453369,-155.75015911,0.00015483,2]
[419772272,1775369453378,-150.0,0.00015483,2]
[419772273,1775369453387,-627.70930647,0.00015486,2]
[419772274,1775369453397,-1000.0,0.00015486,2]
[419772275,1775369453406,-1000.0,0.00015486,2]
[419772276,1775369453416,-1000.0,0.00015486,2]
[419772277,1775369453425,-189.74788311,0.00015486,2]
[419772278,1775369453434,-150.0,0.00015489,2]
[419772279,1775369453444,-22280.25424296,0.00015491,2]
[419772280,1775369453454,-150.0,0.00015495,2]
[419772281,1775369453463,-1000.0,0.00015495,2]
[419772282,1775369453473,-150.0,0.00015497,2]
[419772283,1775369453482,-1000.0,0.00015498,2]
[419772284,1775369453491,-1000.0,0.00015498,2]
[419772285,1775369453501,-1000.0,0.00015498,2]
[419772286,1775369453511,-1000.0,0.00015498,2]
[419772287,1775369453521,-155.75015911,0.00015499,2]
[419772288,1775369453532,-150.0,0.000155,2]
[419772289,1775369453542,-5643.7200837,0.000155,3]
[419772290,1775369453552,-1231.52674065,0.000155,2]
[419772291,1775369453561,-1541.97906342,0.00015501,2]
[419772292,1775369453571,-150.0,0.00015508,2]
[419772293,1775369453581,-150.0,0.00015508,2]
[419772294,1775369453590,-150.0,0.00015511,2]
[419772295,1775369453600,-150.0,0.00015515,2]
[419772296,1775369453609,-155.75015911,0.00015515,2]
[419772297,1775369453619,-150.0,0.0001552,2]
[419772298,1775369453628,-150.0,0.00015523,2]
[419772299,1775369453638,-150.0,0.00015525,2]
[419772300,1775369453647,-150.0,0.00015529,2]
[419772301,1775369453657,-155.75015911,0.00015531,2]
[419772302,1775369453666,-150.0,0.00015532,2]
[419772303,1775369453676,-150.0,0.00015533,2]
[419772304,1775369453685,-150.0,0.00015533,2]
[419772305,1775369453695,-155.75015911,0.00015547,2]
[419772306,1775369453705,-150.0,0.0001555,2]
[419772307,1775369453715,-150.0,0.00015551,2]
[419772308,1775369453724,-150.0,0.00015551,2]
[419772309,1775369453734,-150.0,0.00015556,2]
[419772310,1775369453743,-150.0,0.00015557,2]
[419772311,1775369453753,-903.49,0.00015562,2]
[419772312,1775369453762,-155.75015911,0.00015564,2]
[419772313,1775369453772,-150.0,0.00015569,2]
[419772314,1775369453782,-150.0,0.00015569,2]
[419772315,1775369453792,-150.0,0.00015575,2]
[419772316,1775369453801,-150.0,0.00015576,2]
[419772317,1775369453810,-150.0,0.00015578,2]
[419772318,1775369453819,-150.0,0.00015579,2]